[Event "Late-Titled-Tuesday-Blitz-January-16-2024"]
[Site "Chess.com"]
[Date "2024.01.16"]
[Round "8"]
[White "TheMagician"]
[Black "mbchess97"]
[Result "1-0"]
[WhiteElo "2174"]
[BlackElo "2323"]
[TimeControl "180+1"]
[EndTime "15:28:29 PST"]
[Termination "TheMagician won on time"]

1. e4 {[%clk 0:02:59.1]} 1... c5 {[%clk 0:02:58.6]} 2. Nf3 {[%clk 0:02:57.9]}
2... d6 {[%clk 0:02:57.7]} 3. d4 {[%clk 0:02:57.7]} 3... cxd4 {[%clk 0:02:57.7]}
4. Nxd4 {[%clk 0:02:58.6]} 4... Nf6 {[%clk 0:02:58.3]} 5. f3 {[%clk 0:02:58.6]}
5... Nc6 {[%clk 0:02:56]} 6. c4 {[%clk 0:02:58.7]} 6... g6 {[%clk 0:02:42.7]} 7.
Nc3 {[%clk 0:02:57.5]} 7... Bg7 {[%clk 0:02:41.8]} 8. Be3 {[%clk 0:02:57.6]}
8... Bd7 {[%clk 0:02:32.2]} 9. Qd2 {[%clk 0:02:57.2]} 9... a6 {[%clk 0:02:32.3]}
10. Rc1 {[%clk 0:02:56.5]} 10... Rc8 {[%clk 0:02:31.3]} 11. Be2 {[%clk
0:02:56.7]} 11... Ne5 {[%clk 0:02:24.5]} 12. b3 {[%clk 0:02:56.4]} 12... O-O
{[%clk 0:02:20.2]} 13. O-O {[%clk 0:02:55.9]} 13... Qa5 {[%clk 0:02:16.2]} 14.
Bg5 {[%clk 0:02:54.8]} 14... Qb4 {[%clk 0:01:43.4]} 15. Rfd1 {[%clk 0:02:50.7]}
15... b5 {[%clk 0:01:32.3]} 16. cxb5 {[%clk 0:02:37.2]} 16... axb5 {[%clk
0:01:23.5]} 17. Ncxb5 {[%clk 0:02:12.8]} 17... Qxd2 {[%clk 0:01:17.5]} 18. Bxd2
{[%clk 0:02:11.3]} 18... d5 {[%clk 0:01:06.9]} 19. f4 {[%clk 0:01:51.4]} 19...
Nc6 {[%clk 0:01:03.2]} 20. e5 {[%clk 0:01:47.7]} 20... Ne4 {[%clk 0:01:00.6]}
21. Nxc6 {[%clk 0:01:41.5]} 21... Bxc6 {[%clk 0:00:56.9]} 22. Nd4 {[%clk
0:01:40.8]} 22... Bd7 {[%clk 0:00:47.2]} 23. Be3 {[%clk 0:01:31.8]} 23... Nc3
{[%clk 0:00:45.4]} 24. Rd2 {[%clk 0:01:26.4]} 24... Nxe2+ {[%clk 0:00:39.5]} 25.
Nxe2 {[%clk 0:01:26.4]} 25... Bb5 {[%clk 0:00:29.2]} 26. Rxc8 {[%clk 0:01:24.3]}
26... Rxc8 {[%clk 0:00:28.9]} 27. Nd4 {[%clk 0:01:24.1]} 27... Bd7 {[%clk
0:00:26.4]} 28. Rc2 {[%clk 0:01:22.1]} 28... Ra8 {[%clk 0:00:18.7]} 29. a4
{[%clk 0:01:18.2]} 29... e6 {[%clk 0:00:17.9]} 30. Rc7 {[%clk 0:01:16.2]} 30...
Be8 {[%clk 0:00:17.6]} 31. Nc6 {[%clk 0:01:06.2]} 31... Bf8 {[%clk 0:00:16.9]}
32. Ne7+ {[%clk 0:01:02.4]} 32... Kg7 {[%clk 0:00:14.6]} 33. Bc5 {[%clk
0:01:01]} 33... Rb8 {[%clk 0:00:11.6]} 34. b4 {[%clk 0:00:56.1]} 34... Bxa4
{[%clk 0:00:11]} 35. Nc8 {[%clk 0:00:53.6]} 35... Bxc5+ {[%clk 0:00:10]} 36.
bxc5 {[%clk 0:00:52.4]} 36... Bd7 {[%clk 0:00:07.8]} 37. Nb6 {[%clk 0:00:47.5]}
37... Be8 {[%clk 0:00:07.1]} 38. Kf2 {[%clk 0:00:46]} 38... Kf8 {[%clk 0:00:07]}
39. Ke3 {[%clk 0:00:44.3]} 39... Rd8 {[%clk 0:00:04.9]} 40. Kd4 {[%clk
0:00:44.4]} 40... h5 {[%clk 0:00:04.9]} 41. c6 {[%clk 0:00:44.4]} 41... Rb8
{[%clk 0:00:04.5]} 42. Kc5 {[%clk 0:00:44.1]} 42... d4 {[%clk 0:00:04.8]} 43.
Nd7+ {[%clk 0:00:44.2]} 43... Bxd7 {[%clk 0:00:04.7]} 44. Rxd7 {[%clk
0:00:44.5]} 1-0

[Event "Late-Titled-Tuesday-Blitz-January-16-2024"]
[Site "Chess.com"]
[Date "2024.01.16"]
[Round "8"]
[White "AEMEffi"]
[Black "ccccvhhhj"]
[Result "0-1"]
[WhiteElo "2356"]
[BlackElo "2514"]
[TimeControl "180+1"]
[EndTime "15:28:33 PST"]
[Termination "ccccvhhhj won on time"]

1. d4 {[%clk 0:02:12.7]} 1... e5 {[%clk 0:02:59]} 2. c4 {[%clk 0:02:13.6]} 2...
exd4 {[%clk 0:02:58.8]} 3. Qxd4 {[%clk 0:02:14.5]} 3... Nc6 {[%clk 0:02:56.7]}
4. Qd1 {[%clk 0:02:15.4]} 4... Bc5 {[%clk 0:02:52.4]} 5. Nf3 {[%clk 0:02:15.3]}
5... Nf6 {[%clk 0:02:51.1]} 6. e3 {[%clk 0:02:15.1]} 6... O-O {[%clk 0:02:48.4]}
7. a3 {[%clk 0:02:15.6]} 7... a5 {[%clk 0:02:45.7]} 8. Nc3 {[%clk 0:02:15.5]}
8... d6 {[%clk 0:02:42.7]} 9. Be2 {[%clk 0:02:11.4]} 9... Bg4 {[%clk 0:02:43.3]}
10. h3 {[%clk 0:02:07]} 10... Bh5 {[%clk 0:02:41.5]} 11. O-O {[%clk 0:01:55.3]}
11... Re8 {[%clk 0:02:29.3]} 12. b3 {[%clk 0:01:47.4]} 12... h6 {[%clk
0:01:59.5]} 13. Bb2 {[%clk 0:01:40.9]} 13... Qe7 {[%clk 0:01:39.9]} 14. Nd5
{[%clk 0:01:18.9]} 14... Nxd5 {[%clk 0:01:39.1]} 15. cxd5 {[%clk 0:01:19.8]}
15... Bxf3 {[%clk 0:01:27.8]} 16. Bxf3 {[%clk 0:01:18.1]} 16... Ne5 {[%clk
0:01:28.7]} 17. Be2 {[%clk 0:01:14.7]} 17... Ng6 {[%clk 0:01:21.8]} 18. Qd3
{[%clk 0:01:03.4]} 18... Qg5 {[%clk 0:01:21.1]} 19. e4 {[%clk 0:00:17.6]} 19...
Nh4 {[%clk 0:01:15.9]} 20. g3 {[%clk 0:00:17.4]} 20... Rxe4 {[%clk 0:00:54]} 21.
Kh2 {[%clk 0:00:13.5]} 21... Rae8 {[%clk 0:00:51.1]} 22. Bg4 {[%clk 0:00:08.1]}
22... Ng6 {[%clk 0:00:42.2]} 23. Qc3 {[%clk 0:00:05.3]} 23... Bd4 {[%clk
0:00:40.1]} 24. Qxd4 {[%clk 0:00:03.3]} 24... Rxd4 {[%clk 0:00:40.2]} 25. Bxd4
{[%clk 0:00:04.2]} 25... Ne5 {[%clk 0:00:27.6]} 26. Be2 {[%clk 0:00:03.9]} 26...
Qd2 {[%clk 0:00:27.9]} 27. Bxe5 {[%clk 0:00:02.6]} 27... Rxe5 {[%clk 0:00:25.1]}
28. Bc4 {[%clk 0:00:02.5]} 28... Qd4 {[%clk 0:00:19.5]} 29. a4 {[%clk
0:00:02.6]} 29... Qc5 {[%clk 0:00:19]} 30. Kg2 {[%clk 0:00:02.5]} 30... Qd4
{[%clk 0:00:18.9]} 31. Rfe1 {[%clk 0:00:02.2]} 31... Qc3 {[%clk 0:00:15]} 32.
Rxe5 {[%clk 0:00:01.7]} 32... Qxe5 {[%clk 0:00:15.9]} 33. Rd1 {[%clk 0:00:01.3]}
33... Qe4+ {[%clk 0:00:16.1]} 0-1

[Event "Late-Titled-Tuesday-Blitz-January-16-2024"]
[Site "Chess.com"]
[Date "2024.01.16"]
[Round "8"]
[White "Sargsyan_Shant"]
[Black "Jagerrmeisterr"]
[Result "1-0"]
[WhiteElo "2887"]
[BlackElo "2720"]
[TimeControl "180+1"]
[EndTime "15:28:38 PST"]
[Termination "Sargsyan_Shant won by resignation"]

1. c4 {[%clk 0:03:00.9]} 1... f5 {[%clk 0:02:59.3]} 2. g3 {[%clk 0:02:56.6]}
2... Nf6 {[%clk 0:02:58]} 3. d4 {[%clk 0:02:56.4]} 3... g6 {[%clk 0:02:52.6]} 4.
Bg2 {[%clk 0:02:56.8]} 4... Bg7 {[%clk 0:02:52.6]} 5. Nc3 {[%clk 0:02:57.1]}
5... O-O {[%clk 0:02:52.3]} 6. Nh3 {[%clk 0:02:57.5]} 6... d6 {[%clk 0:02:47.5]}
7. d5 {[%clk 0:02:57.5]} 7... e5 {[%clk 0:02:03.1]} 8. dxe6 {[%clk 0:02:54.4]}
8... c6 {[%clk 0:02:03.4]} 9. Nf4 {[%clk 0:02:53.2]} 9... Qe7 {[%clk 0:02:01.6]}
10. Qc2 {[%clk 0:02:41.3]} 10... Na6 {[%clk 0:01:56.7]} 11. O-O {[%clk
0:02:12.6]} 11... Bxe6 {[%clk 0:01:48.9]} 12. Nxe6 {[%clk 0:02:13.5]} 12... Qxe6
{[%clk 0:01:49.4]} 13. b3 {[%clk 0:02:14.4]} 13... Nb4 {[%clk 0:01:36.8]} 14.
Qd2 {[%clk 0:02:14]} 14... Ne4 {[%clk 0:01:33.8]} 15. Nxe4 {[%clk 0:02:13.7]}
15... fxe4 {[%clk 0:01:34.2]} 16. Qxb4 {[%clk 0:02:05.8]} 16... Bxa1 {[%clk
0:01:34]} 17. Qxb7 {[%clk 0:02:03.4]} 17... Rae8 {[%clk 0:00:41]} 18. Bh6 {[%clk
0:01:52.5]} 18... Rf7 {[%clk 0:00:40.6]} 19. Qxc6 {[%clk 0:01:51.3]} 19... Bd4
{[%clk 0:00:39.2]} 20. e3 {[%clk 0:01:49.4]} 20... Bc5 {[%clk 0:00:37.8]} 21. h4
{[%clk 0:01:46.3]} 21... g5 {[%clk 0:00:24.2]} 22. Bxg5 {[%clk 0:01:44.9]} 22...
h6 {[%clk 0:00:24.3]} 23. Bf4 {[%clk 0:01:45]} 23... Kh8 {[%clk 0:00:21.1]} 24.
Kh2 {[%clk 0:01:38.9]} 24... a5 {[%clk 0:00:18.3]} 25. Bh3 {[%clk 0:01:38.9]}
25... Qe7 {[%clk 0:00:17.1]} 26. Bxh6 {[%clk 0:01:37.3]} 26... Rg8 {[%clk
0:00:15.9]} 27. Bf4 {[%clk 0:01:34.9]} 27... Rg6 {[%clk 0:00:12]} 28. Qd5 {[%clk
0:01:34.1]} 28... Kg8 {[%clk 0:00:09.7]} 29. Bg2 {[%clk 0:01:31.5]} 29... Re6
{[%clk 0:00:09]} 30. Bh3 {[%clk 0:01:26.4]} 30... Rg6 {[%clk 0:00:09.3]} 31. Qh5
{[%clk 0:01:24.1]} 31... Rfg7 {[%clk 0:00:08]} 32. Rd1 {[%clk 0:01:17.2]} 32...
Rf6 {[%clk 0:00:06.9]} 33. Qd5+ {[%clk 0:01:12.3]} 33... Kh8 {[%clk 0:00:05]}
34. Rd2 {[%clk 0:01:03.6]} 34... Rxf4 {[%clk 0:00:04.9]} 35. exf4 {[%clk
0:01:03.1]} 35... e3 {[%clk 0:00:05]} 36. Re2 {[%clk 0:01:03.3]} 36... Qf6
{[%clk 0:00:04.2]} 37. fxe3 {[%clk 0:01:01.6]} 37... Qg6 {[%clk 0:00:04.7]} 38.
Qf3 {[%clk 0:00:57.6]} 38... Qd3 {[%clk 0:00:04.2]} 39. Be6 {[%clk 0:00:54.4]}
39... Rh7 {[%clk 0:00:03.5]} 40. Kg2 {[%clk 0:00:53.8]} 40... Qg6 {[%clk
0:00:03.7]} 41. Qa8+ {[%clk 0:00:49.8]} 41... Kg7 {[%clk 0:00:02.8]} 42. Qg8+
{[%clk 0:00:50.3]} 42... Kh6 {[%clk 0:00:03.4]} 43. Qxg6+ {[%clk 0:00:50.4]}
43... Kxg6 {[%clk 0:00:04.3]} 44. Kf3 {[%clk 0:00:50]} 44... Kf6 {[%clk
0:00:04.9]} 45. Bd5 {[%clk 0:00:50.4]} 45... a4 {[%clk 0:00:05.6]} 46. bxa4
{[%clk 0:00:43.5]} 46... Ra7 {[%clk 0:00:04.8]} 47. g4 {[%clk 0:00:44]} 47...
Rxa4 {[%clk 0:00:04.9]} 48. g5+ {[%clk 0:00:44.9]} 48... Ke7 {[%clk 0:00:05.3]}
49. h5 {[%clk 0:00:45.3]} 1-0

[Event "Late-Titled-Tuesday-Blitz-January-16-2024"]
[Site "Chess.com"]
[Date "2024.01.16"]
[Round "8"]
[White "Perecke"]
[Black "Rodalquilar"]
[Result "0-1"]
[WhiteElo "2547"]
[BlackElo "2728"]
[TimeControl "180+1"]
[EndTime "15:28:40 PST"]
[Termination "Rodalquilar won by resignation"]

1. e4 {[%clk 0:02:56.9]} 1... d5 {[%clk 0:03:00]} 2. exd5 {[%clk 0:02:57]} 2...
Qxd5 {[%clk 0:03:00.9]} 3. Nc3 {[%clk 0:02:56.4]} 3... Qa5 {[%clk 0:03:01.1]} 4.
Bc4 {[%clk 0:02:55]} 4... Nf6 {[%clk 0:03:01.4]} 5. d3 {[%clk 0:02:53]} 5... Bg4
{[%clk 0:03:01.5]} 6. Ne2 {[%clk 0:02:50.6]} 6... Nc6 {[%clk 0:02:28.5]} 7. h3
{[%clk 0:02:47.1]} 7... Bd7 {[%clk 0:02:14.7]} 8. Be3 {[%clk 0:02:27.4]} 8... e6
{[%clk 0:02:09.3]} 9. Qd2 {[%clk 0:02:26.2]} 9... Bc5 {[%clk 0:01:58.1]} 10.
O-O-O {[%clk 0:02:21.5]} 10... O-O-O {[%clk 0:01:55.6]} 11. Ne4 {[%clk
0:02:13.3]} 11... Nxe4 {[%clk 0:01:26]} 12. dxe4 {[%clk 0:02:01.7]} 12... Qxd2+
{[%clk 0:01:17.4]} 13. Kxd2 {[%clk 0:02:02.6]} 13... Be8+ {[%clk 0:01:17.1]} 14.
Bd3 {[%clk 0:02:02.6]} 14... Bb4+ {[%clk 0:00:56.5]} 15. c3 {[%clk 0:02:01.1]}
15... Ne5 {[%clk 0:00:55.3]} 16. Kc2 {[%clk 0:01:54.8]} 16... Nxd3 {[%clk
0:00:50.5]} 17. Rxd3 {[%clk 0:01:52.8]} 17... Rxd3 {[%clk 0:00:50.6]} 18. Kxd3
{[%clk 0:01:48.7]} 18... Be7 {[%clk 0:00:38.9]} 19. Kc2 {[%clk 0:01:40.9]} 19...
Ba4+ {[%clk 0:00:37.5]} 20. b3 {[%clk 0:01:40.2]} 20... Bc6 {[%clk 0:00:37.7]}
21. f3 {[%clk 0:01:39.7]} 21... h5 {[%clk 0:00:34.7]} 22. Nd4 {[%clk 0:01:32.7]}
22... Be8 {[%clk 0:00:34.9]} 23. a4 {[%clk 0:01:32]} 23... h4 {[%clk 0:00:34.7]}
24. e5 {[%clk 0:01:24.4]} 24... Rh5 {[%clk 0:00:25.7]} 25. f4 {[%clk 0:01:23.1]}
25... g5 {[%clk 0:00:26.2]} 26. Rf1 {[%clk 0:01:15.5]} 26... gxf4 {[%clk
0:00:26.7]} 27. Bxf4 {[%clk 0:01:16.4]} 27... a6 {[%clk 0:00:27]} 28. Kd3 {[%clk
0:01:11.5]} 28... Rh7 {[%clk 0:00:26.9]} 29. Nf3 {[%clk 0:01:06.4]} 29... Bc6
{[%clk 0:00:26.3]} 30. Rf2 {[%clk 0:00:53.8]} 30... Rg7 {[%clk 0:00:25.8]} 31.
Ke3 {[%clk 0:00:53.1]} 31... Bc5+ {[%clk 0:00:25.5]} 32. Nd4 {[%clk 0:00:52.5]}
32... Bxg2 {[%clk 0:00:23.5]} 33. Bh6 {[%clk 0:00:41]} 33... Rg6 {[%clk
0:00:23.6]} 34. Kf4 {[%clk 0:00:24.9]} 34... Bxh3 {[%clk 0:00:19.9]} 35. Bg5
{[%clk 0:00:25.2]} 35... Bf5 {[%clk 0:00:20.5]} 36. Nxf5 {[%clk 0:00:20.7]}
36... Bxf2 {[%clk 0:00:18.2]} 37. Ne7+ {[%clk 0:00:20.8]} 37... Kd7 {[%clk
0:00:18.7]} 38. Nxg6 {[%clk 0:00:21.7]} 38... fxg6 {[%clk 0:00:19.4]} 39. Kg4
{[%clk 0:00:22.3]} 39... b5 {[%clk 0:00:15]} 40. axb5 {[%clk 0:00:21.1]} 40...
axb5 {[%clk 0:00:15.5]} 41. Bxh4 {[%clk 0:00:20]} 41... Bxh4 {[%clk 0:00:14.8]}
42. Kxh4 {[%clk 0:00:20.6]} 42... Kc6 {[%clk 0:00:15.2]} 43. c4 {[%clk 0:00:21]}
43... bxc4 {[%clk 0:00:15.2]} 44. bxc4 {[%clk 0:00:21.9]} 44... Kc5 {[%clk
0:00:13.9]} 45. Kg5 {[%clk 0:00:22.8]} 45... Kxc4 {[%clk 0:00:14.5]} 46. Kxg6
{[%clk 0:00:22.9]} 46... Kd5 {[%clk 0:00:15.1]} 0-1

[Event "Late-Titled-Tuesday-Blitz-January-16-2024"]
[Site "Chess.com"]
[Date "2024.01.16"]
[Round "8"]
[White "Petukhov_Dmitry"]
[Black "Arifarsky"]
[Result "0-1"]
[WhiteElo "2545"]
[BlackElo "2718"]
[TimeControl "180+1"]
[EndTime "15:28:40 PST"]
[Termination "Arifarsky won by resignation"]

1. e4 {[%clk 0:03:00.2]} 1... c6 {[%clk 0:03:00.5]} 2. d4 {[%clk 0:03:00.1]}
2... d5 {[%clk 0:03:01.4]} 3. Nd2 {[%clk 0:03:00.9]} 3... dxe4 {[%clk
0:02:58.6]} 4. Nxe4 {[%clk 0:03:01.8]} 4... Bf5 {[%clk 0:02:59.5]} 5. Ng3 {[%clk
0:03:02]} 5... Bg6 {[%clk 0:03:00.1]} 6. Nf3 {[%clk 0:03:02.4]} 6... Nd7 {[%clk
0:02:59.2]} 7. h4 {[%clk 0:03:00.5]} 7... h6 {[%clk 0:02:57.8]} 8. h5 {[%clk
0:03:00]} 8... Bh7 {[%clk 0:02:57.9]} 9. Bd3 {[%clk 0:03:00.4]} 9... Bxd3 {[%clk
0:02:57.2]} 10. Qxd3 {[%clk 0:03:01.3]} 10... e6 {[%clk 0:02:58]} 11. Bd2 {[%clk
0:03:02.2]} 11... Ngf6 {[%clk 0:02:58.8]} 12. O-O-O {[%clk 0:03:02.6]} 12... Qc7
{[%clk 0:02:58.6]} 13. Ne4 {[%clk 0:03:01.7]} 13... O-O-O {[%clk 0:02:53.1]} 14.
Kb1 {[%clk 0:02:57.5]} 14... c5 {[%clk 0:02:45.8]} 15. dxc5 {[%clk 0:02:47.9]}
15... Nxc5 {[%clk 0:02:43.1]} 16. Nxc5 {[%clk 0:02:42.6]} 16... Rxd3 {[%clk
0:02:37.8]} 17. Nxd3 {[%clk 0:02:43.5]} 17... Bd6 {[%clk 0:02:35.4]} 18. Nd4
{[%clk 0:02:42]} 18... a6 {[%clk 0:02:34.4]} 19. Rh3 {[%clk 0:02:35.2]} 19...
Rd8 {[%clk 0:02:31.8]} 20. Nc1 {[%clk 0:02:27.2]} 20... Kb8 {[%clk 0:02:17.9]}
21. Rb3 {[%clk 0:02:26.1]} 21... Bc5 {[%clk 0:02:13.6]} 22. Bf4 {[%clk
0:02:13.9]} 22... Bd6 {[%clk 0:02:00.5]} 23. Rc3 {[%clk 0:01:56.2]} 23... Qe7
{[%clk 0:01:38]} 24. Be3 {[%clk 0:01:26.1]} 24... Nd5 {[%clk 0:01:35.3]} 25. Rb3
{[%clk 0:01:26.3]} 25... Ka8 {[%clk 0:01:33.4]} 26. Bd2 {[%clk 0:01:25.2]} 26...
Bc5 {[%clk 0:01:29.7]} 27. Nf3 {[%clk 0:01:19.1]} 27... Bxf2 {[%clk 0:01:25.1]}
28. Nd3 {[%clk 0:01:15.1]} 28... Ba7 {[%clk 0:01:20]} 29. Nde5 {[%clk
0:01:07.3]} 29... Qc7 {[%clk 0:01:05.5]} 30. Rf1 {[%clk 0:00:56.8]} 30... f6
{[%clk 0:00:57.3]} 31. Ng6 {[%clk 0:00:41.9]} 31... e5 {[%clk 0:00:57.6]} 32.
Bc1 {[%clk 0:00:33.4]} 32... e4 {[%clk 0:00:53.5]} 33. Nd2 {[%clk 0:00:29.4]}
33... e3 {[%clk 0:00:46]} 34. Nf3 {[%clk 0:00:29.6]} 34... Rc8 {[%clk
0:00:44.2]} 35. c3 {[%clk 0:00:26.9]} 35... Qc4 {[%clk 0:00:44.5]} 36. Re1
{[%clk 0:00:26.6]} 36... Qg4 {[%clk 0:00:40.5]} 37. c4 {[%clk 0:00:15.8]} 37...
Qxh5 {[%clk 0:00:34.6]} 38. cxd5 {[%clk 0:00:13.9]} 38... Qxg6+ {[%clk
0:00:34.8]} 39. Ka1 {[%clk 0:00:13.6]} 39... Qxg2 {[%clk 0:00:35.5]} 40. Nh4
{[%clk 0:00:10.9]} 40... Qf2 {[%clk 0:00:35.7]} 41. Rh1 {[%clk 0:00:09.3]} 41...
e2 {[%clk 0:00:35.9]} 42. Bd2 {[%clk 0:00:09.2]} 42... Qf1+ {[%clk 0:00:35.3]}
0-1

[Event "Late-Titled-Tuesday-Blitz-January-16-2024"]
[Site "Chess.com"]
[Date "2024.01.16"]
[Round "8"]
[White "Quattroporte300"]
[Black "secretsuperstar7"]
[Result "0-1"]
[WhiteElo "2418"]
[BlackElo "2506"]
[TimeControl "180+1"]
[EndTime "15:28:42 PST"]
[Termination "secretsuperstar7 won on time"]

1. e4 {[%clk 0:02:57.4]} 1... c5 {[%clk 0:02:59]} 2. Nc3 {[%clk 0:02:56.6]} 2...
Nc6 {[%clk 0:02:58.8]} 3. Bb5 {[%clk 0:02:55.1]} 3... Nd4 {[%clk 0:02:58.3]} 4.
Bc4 {[%clk 0:02:54.7]} 4... g6 {[%clk 0:02:58.3]} 5. Nge2 {[%clk 0:02:53.5]}
5... Bg7 {[%clk 0:02:58.3]} 6. Nxd4 {[%clk 0:02:52.2]} 6... cxd4 {[%clk
0:02:58.2]} 7. Qf3 {[%clk 0:02:51.8]} 7... e6 {[%clk 0:02:54.5]} 8. Nb5 {[%clk
0:02:28.2]} 8... d6 {[%clk 0:02:52.7]} 9. c3 {[%clk 0:02:22.9]} 9... dxc3 {[%clk
0:02:51.4]} 10. bxc3 {[%clk 0:02:19.4]} 10... a6 {[%clk 0:02:49.8]} 11. Nd4
{[%clk 0:02:17.1]} 11... Ne7 {[%clk 0:02:48.2]} 12. O-O {[%clk 0:02:16.1]} 12...
O-O {[%clk 0:02:48]} 13. d3 {[%clk 0:02:09]} 13... b5 {[%clk 0:02:47.4]} 14. Bb3
{[%clk 0:02:08.7]} 14... Bb7 {[%clk 0:02:47.9]} 15. Bg5 {[%clk 0:02:05.4]} 15...
Rc8 {[%clk 0:02:45.9]} 16. Rac1 {[%clk 0:02:02.7]} 16... Qd7 {[%clk 0:02:42.5]}
17. Qe3 {[%clk 0:01:59.7]} 17... Nc6 {[%clk 0:02:38.2]} 18. Nxc6 {[%clk
0:01:52.8]} 18... Qxc6 {[%clk 0:02:36.1]} 19. c4 {[%clk 0:01:18.5]} 19... b4
{[%clk 0:02:30.9]} 20. f4 {[%clk 0:01:06.2]} 20... Qc5 {[%clk 0:02:24]} 21. Qxc5
{[%clk 0:01:02.4]} 21... dxc5 {[%clk 0:02:23.2]} 22. Kf2 {[%clk 0:00:57.6]}
22... f6 {[%clk 0:02:19.7]} 23. Bh4 {[%clk 0:00:56.3]} 23... Rfd8 {[%clk
0:02:19.9]} 24. Ke2 {[%clk 0:00:54.7]} 24... Rd7 {[%clk 0:02:17.1]} 25. Ba4
{[%clk 0:00:52.2]} 25... Rd6 {[%clk 0:02:16.5]} 26. Bf2 {[%clk 0:00:42.2]} 26...
Rdd8 {[%clk 0:01:58.4]} 27. Be3 {[%clk 0:00:40.3]} 27... Bc6 {[%clk 0:01:56.7]}
28. Bxc6 {[%clk 0:00:39]} 28... Rxc6 {[%clk 0:01:57.6]} 29. g4 {[%clk
0:00:33.4]} 29... a5 {[%clk 0:01:55.4]} 30. f5 {[%clk 0:00:31.3]} 30... exf5
{[%clk 0:01:54.4]} 31. gxf5 {[%clk 0:00:31.9]} 31... g5 {[%clk 0:01:53.2]} 32.
h4 {[%clk 0:00:29.8]} 32... h6 {[%clk 0:01:53.4]} 33. hxg5 {[%clk 0:00:28.7]}
33... hxg5 {[%clk 0:01:53.2]} 34. e5 {[%clk 0:00:23.8]} 34... fxe5 {[%clk
0:01:51.1]} 35. Bxg5 {[%clk 0:00:24.4]} 35... Rf8 {[%clk 0:01:44.1]} 36. Rf3
{[%clk 0:00:19.5]} 36... Kf7 {[%clk 0:01:44.1]} 37. f6 {[%clk 0:00:16.2]} 37...
Bxf6 {[%clk 0:01:42.1]} 38. Rh1 {[%clk 0:00:09]} 38... Rg8 {[%clk 0:01:35.5]}
39. Bxf6 {[%clk 0:00:07.9]} 39... Rxf6 {[%clk 0:01:34.2]} 40. Rh7+ {[%clk
0:00:08.3]} 40... Ke6 {[%clk 0:01:33.9]} 41. Rxf6+ {[%clk 0:00:06.8]} 41... Kxf6
{[%clk 0:01:34.8]} 42. Rc7 {[%clk 0:00:05.6]} 42... Rg2+ {[%clk 0:01:33.8]} 43.
Ke3 {[%clk 0:00:06.3]} 43... Rxa2 {[%clk 0:01:31.6]} 44. Rxc5 {[%clk 0:00:06.9]}
44... b3 {[%clk 0:01:31.3]} 45. Rb5 {[%clk 0:00:06.3]} 45... a4 {[%clk
0:01:30.5]} 46. d4 {[%clk 0:00:06.6]} 46... exd4+ {[%clk 0:01:27.8]} 47. Kxd4
{[%clk 0:00:07.2]} 47... Ke6 {[%clk 0:01:22]} 48. Rb6+ {[%clk 0:00:07.1]} 48...
Kd7 {[%clk 0:01:22.1]} 49. Kc3 {[%clk 0:00:07.4]} 49... Rc2+ {[%clk 0:01:21.1]}
50. Kd3 {[%clk 0:00:06.5]} 50... Rc1 {[%clk 0:01:17.6]} 51. Rb4 {[%clk
0:00:06.4]} 51... Kc6 {[%clk 0:01:16.2]} 52. Kd2 {[%clk 0:00:04.8]} 52... Ra1
{[%clk 0:01:14]} 53. Kc3 {[%clk 0:00:04.5]} 53... Ra2 {[%clk 0:01:12]} 54. Rb8
{[%clk 0:00:03.6]} 54... Rc2+ {[%clk 0:01:09.5]} 55. Kd3 {[%clk 0:00:03.3]}
55... Kc5 {[%clk 0:01:09.8]} 56. Rb5+ {[%clk 0:00:03.4]} 56... Kc6 {[%clk
0:01:09.7]} 57. Rb8 {[%clk 0:00:03.1]} 57... Rc1 {[%clk 0:01:04.2]} 58. Ra8
{[%clk 0:00:03.1]} 58... b2 {[%clk 0:01:03.7]} 0-1

[Event "Late-Titled-Tuesday-Blitz-January-16-2024"]
[Site "Chess.com"]
[Date "2024.01.16"]
[Round "8"]
[White "Nouali_Mohamed"]
[Black "topce"]
[Result "1-0"]
[WhiteElo "2537"]
[BlackElo "2364"]
[TimeControl "180+1"]
[EndTime "15:28:43 PST"]
[Termination "Nouali_Mohamed won by checkmate"]

1. e4 {[%clk 0:03:00]} 1... e6 {[%clk 0:02:55.9]} 2. d4 {[%clk 0:02:59.1]} 2...
d5 {[%clk 0:02:55.6]} 3. Nc3 {[%clk 0:02:59.2]} 3... Nf6 {[%clk 0:02:54.2]} 4.
Bg5 {[%clk 0:02:57.6]} 4... dxe4 {[%clk 0:02:52.8]} 5. Nxe4 {[%clk 0:02:57.4]}
5... Be7 {[%clk 0:02:52.9]} 6. Bxf6 {[%clk 0:02:57.8]} 6... Bxf6 {[%clk
0:02:53.1]} 7. Nf3 {[%clk 0:02:58]} 7... g6 {[%clk 0:02:47]} 8. c3 {[%clk
0:02:57.1]} 8... Bg7 {[%clk 0:02:47.2]} 9. Bd3 {[%clk 0:02:56.2]} 9... b6 {[%clk
0:02:47]} 10. Qe2 {[%clk 0:02:55.1]} 10... Bb7 {[%clk 0:02:43.4]} 11. h4 {[%clk
0:02:53.8]} 11... h6 {[%clk 0:02:41.3]} 12. O-O-O {[%clk 0:02:52.9]} 12... Qd5
{[%clk 0:02:36.9]} 13. Kb1 {[%clk 0:02:50]} 13... Qa5 {[%clk 0:02:34.1]} 14.
Ned2 {[%clk 0:02:06.7]} 14... O-O {[%clk 0:02:18.7]} 15. Nc4 {[%clk 0:01:52.5]}
15... Qh5 {[%clk 0:02:12.3]} 16. Nce5 {[%clk 0:01:51]} 16... Bxe5 {[%clk
0:01:54.5]} 17. dxe5 {[%clk 0:01:46.6]} 17... Bxf3 {[%clk 0:01:22.4]} 18. gxf3
{[%clk 0:01:44.7]} 18... Nc6 {[%clk 0:01:18.6]} 19. Be4 {[%clk 0:01:05.3]} 19...
Nxe5 {[%clk 0:01:17.9]} 20. Bxa8 {[%clk 0:01:02.7]} 20... Rxa8 {[%clk
0:01:18.8]} 21. Qe4 {[%clk 0:00:57.5]} 21... Rf8 {[%clk 0:01:12.1]} 22. f4
{[%clk 0:00:54.5]} 22... Ng4 {[%clk 0:01:06.5]} 23. Qf3 {[%clk 0:00:48.9]} 23...
Qf5+ {[%clk 0:01:00.2]} 24. Ka1 {[%clk 0:00:48.8]} 24... h5 {[%clk 0:00:52.4]}
25. Rhe1 {[%clk 0:00:48.9]} 25... Qf6 {[%clk 0:00:46.1]} 26. Qg3 {[%clk
0:00:45.7]} 26... a5 {[%clk 0:00:44.7]} 27. f3 {[%clk 0:00:43.5]} 27... Nh6
{[%clk 0:00:43.8]} 28. Qg5 {[%clk 0:00:43.5]} 28... Qg7 {[%clk 0:00:40.4]} 29.
Rd7 {[%clk 0:00:41.1]} 29... Nf5 {[%clk 0:00:39.7]} 30. Rxc7 {[%clk 0:00:39.4]}
30... Rd8 {[%clk 0:00:34.9]} 31. Qxd8+ {[%clk 0:00:38.3]} 31... Kh7 {[%clk
0:00:33.8]} 32. Rd1 {[%clk 0:00:34.4]} 32... b5 {[%clk 0:00:30.3]} 33. Rdd7
{[%clk 0:00:32.8]} 33... Nh6 {[%clk 0:00:30]} 34. Qe8 {[%clk 0:00:28.9]} 34...
b4 {[%clk 0:00:28]} 35. Rxf7 {[%clk 0:00:27.6]} 35... Nxf7 {[%clk 0:00:28.1]}
36. Rxf7 {[%clk 0:00:28.5]} 36... bxc3 {[%clk 0:00:27.4]} 37. Rxg7+ {[%clk
0:00:28.6]} 37... Kxg7 {[%clk 0:00:28.1]} 38. Qe7+ {[%clk 0:00:28.7]} 38... Kh6
{[%clk 0:00:27.6]} 39. bxc3 {[%clk 0:00:27.3]} 39... a4 {[%clk 0:00:27.3]} 40.
Qf7 {[%clk 0:00:26.2]} 40... a3 {[%clk 0:00:28.2]} 41. Qg8 {[%clk 0:00:26.1]}
41... e5 {[%clk 0:00:05.9]} 42. Qh8# {[%clk 0:00:24]} 1-0